bitfinex-derivatives/quotes_BNBF0:USTF0_20250112
["timestamp","ask_amount","ask_price","bid_price","bid_amount"]
[1736708114752,1.07468304,696.29,695.1,4.11835076]
[1736708115056,1.07468304,696.29,695.11,2.83690884]
[1736708115454,1.07468304,696.32,695.11,4.11835076]
[1736708115655,1.07468304,696.32,695.12,5.83561655]
[1736708115851,1.07468304,696.32,695.13,2.83690884]
[1736708116557,1.07468304,696.37,695.13,2.83690884]
[1736708117559,1.07468304,696.37,695.14,2.99870771]
[1736708117759,1.07468304,696.37,695.15,2.83690884]
[1736708118356,1.07468304,696.39,695.16,2.99870771]
[1736708118554,1.07468304,696.39,695.17,2.83690884]
[1736708119060,1.07468304,696.4,695.17,2.83690884]
[1736708119961,1.07468304,696.41,695.18,2.99870771]
[1736708120160,1.07468304,696.41,695.19,1.74147631]
[1736708120561,1.07468304,696.38,695.19,1.74147631]
[1736708121561,1.07468304,696.38,695.0,0.28776978]
[1736708124759,1.07468304,696.38,695.0,3.28647749]
[1736708124958,1.07468304,696.38,695.01,2.83579184]
[1736708125464,1.07468304,696.38,695.02,0.2877615]
[1736708125764,1.07468304,696.39,695.02,0.2877615]
[1736708126059,0.26407175,696.38,695.02,0.2877615]
[1736708126564,1.07468304,696.36,695.02,1.56920342]
[1736708126764,1.07468304,696.36,695.02,7.40370297]
[1736708126962,1.07468304,696.36,695.03,2.83579184]
[1736708127265,1.07468304,696.36,695.04,0.28775322]
[1736708128166,1.07468304,696.36,695.04,3.28646093]
[1736708128359,1.07468304,696.36,695.05,2.83579184]
[1736708128559,1.07468304,696.36,695.06,0.28774494]
[1736708129865,1.07468304,696.36,695.06,3.28645265]
[1736708130066,1.07468304,696.35,695.07,2.83579184]
[1736708130270,1.07468304,696.35,695.08,0.28773666]
[1736708131568,1.07468304,696.35,695.08,3.28644437]
[1736708131867,1.07468304,696.35,695.09,2.83579184]
[1736708132769,1.07468304,696.34,695.09,2.83579184]
[1736708133369,1.07468304,696.34,695.1,2.99870771]
[1736708133570,1.07468304,696.34,695.11,2.83579184]
[1736708134973,1.07468304,696.34,695.12,2.99870771]
[1736708135169,1.07468304,696.34,695.13,2.83579184]
[1736708136680,1.07468304,696.38,695.13,2.83579184]
[1736708136876,1.07468304,696.38,695.14,2.99870771]
[1736708137180,1.07468304,696.38,695.15,2.83579184]
[1736708138877,1.07468304,696.38,695.16,2.99870771]
[1736708139079,1.07468304,696.38,695.17,2.83579184]
[1736708139574,1.07468304,696.38,695.17,1.74147631]
[1736708140080,1.07468304,696.4,695.17,1.74147631]
[1736708140783,1.07468304,696.4,695.08,0.28773666]
[1736708141483,1.07468304,696.41,695.08,0.28773666]
[1736708142383,1.07468304,696.4,695.08,0.28773666]
[1736708143179,1.07468304,696.39,695.08,0.28773666]
[1736708143978,1.07468304,696.34,695.08,0.28773666]
[1736708145082,1.07468304,696.46,695.08,0.28773666]
[1736708146384,1.07468304,696.48,695.08,0.28773666]
[1736708147487,1.07468304,696.44,695.08,1.56917858]
[1736708148186,1.07468304,696.38,695.15,1.28144192]
[1736708148782,1.07468304,696.38,695.16,0.28770355]
[1736708148986,1.07468304,696.39,695.16,1.56914547]
[1736708149985,1.07468304,696.4,695.16,1.56914547]
[1736708150589,1.07468304,696.4,695.16,4.40165564]
[1736708150784,0.28711293,696.59,695.16,4.40165564]
[1736708150785,1.07468304,696.41,695.17,2.83251017]
[1736708150986,1.07468304,696.41,695.18,3.12020544]
[1736708151192,1.07468304,696.41,695.19,3.1202013]
[1736708151390,1.07468304,696.41,695.2,2.83251017]
[1736708151587,1.3611591,696.59,695.19,0.28769113]
[1736708151588,1.07468304,696.43,695.21,2.83251017]
[1736708151788,1.07468304,696.43,695.22,2.83251017]
[1736708151989,1.07468304,696.43,695.23,2.83251017]
[1736708152189,1.07468304,696.43,695.24,1.73944041]
[1736708152389,1.07468304,696.43,695.23,1.73944041]
[1736708152685,1.07468304,696.44,695.23,1.73944041]
[1736708153492,1.07468304,696.49,695.19,2.02713154]
[1736708154790,1.07468304,696.49,695.19,0.28769113]
[1736708155693,1.07468304,696.51,695.19,0.28769113]
[1736708156494,1.07468304,696.53,695.19,0.28769113]
[1736708158295,0.28711293,696.59,695.19,0.28769113]
[1736708158296,1.07468304,696.5,695.19,0.28769113]
[1736708159295,1.07468304,696.51,695.19,0.28769113]
[1736708160787,0.28711293,696.59,695.19,0.28769113]
[1736708160788,1.07468304,696.52,695.19,0.28769113]
[1736708162794,1.07468304,696.49,695.19,0.28769113]
[1736708165399,1.07468304,696.46,695.19,0.28769113]
[1736708166299,1.07468304,696.47,695.19,0.28769113]
[1736708166500,0.26404153,696.46,695.19,0.28769113]
[1736708167095,1.07468304,696.43,695.19,0.28769113]
[1736708169895,0.28711293,696.59,695.19,0.28769113]
[1736708169896,1.07468304,696.42,695.19,0.28769113]
[1736708172005,1.07468304,696.41,695.19,0.28769113]
[1736708172805,1.07468304,696.41,695.19,3.28639884]
[1736708173007,1.07468304,696.39,695.2,2.83226935]
[1736708173808,1.07468304,696.38,695.21,2.99870771]
[1736708174007,1.07468304,696.38,695.22,2.83226935]
[1736708174607,1.07468304,696.39,695.22,2.83226935]
[1736708175406,1.07468304,696.39,695.23,2.99870771]
[1736708175601,1.07468304,696.39,695.24,2.83226935]
[1736708176202,1.07468304,696.38,695.24,2.83226935]
[1736708177411,1.07468304,696.38,695.25,2.99870771]
[1736708178009,1.07468304,696.49,695.25,2.99870771]
[1736708178705,0.28711293,696.59,695.25,2.99870771]
[1736708178706,1.07468304,696.48,695.25,2.99870771]
[1736708178909,1.07468304,696.48,695.19,0.28769113]
[1736708179512,1.07468304,696.47,695.19,0.28769113]
[1736708180214,1.07468304,696.46,695.19,0.28769113]
[1736708180907,1.07468304,696.49,695.19,0.28769113]
[1736708181907,1.07468304,696.5,695.19,0.28769113]
[1736708183115,0.28711293,696.59,695.19,0.28769113]
[1736708183116,1.07468304,696.49,695.19,0.28769113]
[1736708184110,1.07468304,696.5,695.19,0.28769113]
[1736708186211,1.07468304,696.49,695.19,0.28769113]
[1736708187012,0.28711293,696.59,695.19,0.28769113]
[1736708187013,1.07468304,696.5,695.19,0.28769113]
[1736708187418,0.2640397,696.49,695.19,0.28769113]
[1736708188020,1.07468304,696.38,695.24,1.28144192]
[1736708188520,1.07468304,696.34,695.19,0.28769113]
[1736708191221,1.07468304,696.34,695.19,3.28639884]
[1736708191421,1.07468304,696.34,695.2,2.83425578]
[1736708192321,1.07468304,696.34,695.21,2.99870771]
[1736708192514,1.07468304,696.34,695.22,2.83425578]
[1736708192718,1.07468304,696.35,695.22,2.83425578]
[1736708193718,1.07468304,696.35,695.23,2.99870771]
[1736708193923,1.07468304,696.35,695.24,2.83425578]
[1736708194619,1.07468304,696.33,695.25,2.99870771]
[1736708194922,1.07468304,696.33,695.26,2.83425578]
[1736708196117,1.07468304,696.33,695.27,2.99870771]
[1736708196320,1.07468304,696.32,695.28,2.83425578]
[1736708197721,1.07468304,696.32,695.29,2.99870771]
[1736708197919,1.07468304,696.32,695.3,1.74045895]
[1736708198522,1.07468304,696.34,695.3,1.74045895]
[1736708199124,1.07468304,696.34,695.19,0.28769113]
[1736708200325,1.07468304,696.34,695.19,3.28639884]
[1736708200621,1.07468304,696.34,695.2,2.8351785]
[1736708201025,1.07468304,696.34,695.21,0.28768285]
[1736708201623,1.07468304,696.39,695.21,0.28768285]
[1736708202320,1.07468304,696.39,695.21,3.28639056]
[1736708202522,1.07468304,696.4,695.22,2.8351785]
[1736708202724,1.07468304,696.4,695.23,0.28767458]
[1736708203620,0.28711293,696.59,695.23,0.28767458]
[1736708203621,1.07468304,696.44,695.23,0.28767458]
[1736708204525,1.07468304,696.44,695.23,3.28638229]
[1736708204726,1.07468304,696.45,695.24,2.8351785]
[1736708205526,1.07468304,696.46,695.24,2.8351785]
[1736708205923,1.07468304,696.46,695.25,3.28637401]
[1736708206228,1.07468304,696.46,695.26,2.8351785]
[1736708206426,1.07468304,696.49,695.27,0.28765803]
[1736708206626,1.07468304,696.49,695.27,1.38237758]
[1736708206826,1.07468304,696.49,695.27,0.28765803]
[1736708207221,1.07468304,696.52,695.27,0.28765803]
[1736708207828,1.07468304,696.52,695.27,3.28636574]
[1736708208028,1.07468304,696.52,695.28,2.8351785]
[1736708208429,1.07468304,696.5,695.29,1.28144192]
[1736708208627,1.07468304,696.5,695.3,0.28764562]
[1736708208924,1.07468304,696.5,695.3,3.12282412]
[1736708209329,1.07468304,696.5,695.31,2.8351785]
[1736708209630,1.07468304,696.5,695.32,5.83388621]
[1736708209928,1.07468304,696.5,695.33,2.8351785]
[1736708211025,1.07468304,696.47,695.34,2.99870771]
[1736708211229,1.07468304,696.47,695.35,2.8351785]
[1736708211930,1.07468304,696.48,695.35,2.8351785]
[1736708212525,1.07468304,696.48,695.36,2.99870771]
[1736708212729,1.07468304,696.48,695.37,2.8351785]
[1736708214335,1.07468304,696.48,695.38,2.99870771]
[1736708214635,1.07468304,696.46,695.39,1.74045895]
[1736708216136,1.07468304,696.46,695.3,0.28764562]
[1736708218542,1.07468304,696.49,695.3,0.28764562]
[1736708219236,1.07468304,696.48,695.3,0.28764562]
[1736708222042,1.07468304,696.47,695.3,0.28764562]
[1736708223339,1.07468304,696.48,695.3,3.28635333]
[1736708223537,1.07468304,696.48,695.31,2.83467234]
[1736708224643,1.07468304,696.48,695.32,2.99870771]
[1736708224844,1.07468304,696.48,695.33,2.83467234]
[1736708226042,1.07468304,696.51,695.33,2.83467234]
[1736708226740,1.07468304,696.51,695.34,2.99870771]
[1736708226939,1.07468304,696.51,695.35,2.83467234]
[1736708227942,1.07468304,696.51,695.36,2.99870771]
[1736708228144,1.07468304,696.51,695.37,2.83467234]
[1736708229241,1.07468304,696.51,695.38,2.99870771]
[1736708229440,1.07468304,696.51,695.39,2.83467234]
[1736708230645,1.07468304,696.51,695.4,2.99870771]
[1736708230843,1.07468304,696.51,695.41,2.83467234]
[1736708232644,1.07468304,696.51,695.42,2.99870771]
[1736708232841,1.07468304,696.51,695.43,2.83467234]
[1736708233442,1.07468304,696.51,695.43,1.74045895]
[1736708233846,1.07468304,696.46,695.43,1.74045895]
[1736708234741,1.07468304,696.46,695.3,0.28764562]
[1736708236345,1.07468304,696.45,695.3,0.28764562]
[1736708236947,1.07468304,696.45,695.3,3.28635333]
[1736708237147,1.07468304,696.45,695.31,2.83421556]
[1736708238351,1.07468304,696.44,695.31,2.83421556]
[1736708238752,1.07468304,696.44,695.32,2.99870771]
[1736708239053,1.07468304,696.44,695.33,2.83421556]
[1736708239645,1.07468304,696.45,695.33,2.83421556]
[1736708240047,1.07468304,696.45,695.34,2.99870771]
[1736708240247,1.07468304,696.45,695.35,2.83421556]
[1736708241652,1.07468304,696.45,695.36,2.99870771]
[1736708241950,1.07468304,696.51,695.37,2.83421556]
[1736708242452,1.07468304,696.52,695.37,2.83421556]
[1736708243151,1.07468304,696.52,695.38,2.99870771]
[1736708243348,1.07468304,696.52,695.39,2.83421556]
[1736708245256,1.07468304,696.52,695.4,2.99870771]
[1736708245458,1.07468304,696.52,695.41,2.83421556]
[1736708246455,1.07468304,696.52,695.42,2.99870771]
[1736708246657,1.07468304,696.52,695.43,2.83421556]
[1736708247556,1.07468304,696.52,695.44,2.99870771]
[1736708247755,1.07468304,696.52,695.45,1.74045895]
[1736708248654,1.07468304,696.45,695.45,1.74045895]
[1736708249056,1.07468304,696.45,695.3,3.12184814]
[1736708249757,1.07468304,696.45,695.31,2.99870771]
[1736708249958,1.07468304,696.45,695.32,2.83420252]
[1736708250759,1.07468304,696.45,695.33,2.99870771]
[1736708250959,1.07468304,696.45,695.34,2.83420252]
[1736708252153,1.07468304,696.44,695.34,2.83420252]
[1736708252757,1.07468304,696.44,695.35,2.99870771]
[1736708252958,1.07468304,696.44,695.36,2.83420252]
[1736708253963,1.07468304,696.43,695.36,2.83420252]
[1736708254265,1.07468304,696.43,695.37,2.99870771]
[1736708254459,1.07468304,696.43,695.38,2.83420252]
[1736708255564,1.07468304,696.43,695.39,2.99870771]
[1736708255761,1.07468304,696.43,695.4,2.83420252]
[1736708256165,1.07468304,696.46,695.4,2.83420252]
[1736708257162,1.07468304,696.45,695.4,2.83420252]
[1736708257466,1.07468304,696.45,695.41,2.99870771]
[1736708257663,1.07468304,696.45,695.42,2.83420252]
[1736708258867,1.07468304,696.45,695.43,2.99870771]
[1736708259068,1.07468304,696.45,695.44,2.83420252]
[1736708259962,1.07468304,696.45,695.45,2.99870771]
[1736708260168,1.07468304,696.45,695.46,1.74045895]
[1736708261970,1.07468304,696.45,695.33,2.8353474]
[1736708263669,1.07468304,696.41,695.33,2.8353474]
[1736708263863,1.07468304,696.41,695.34,2.99870771]
[1736708264063,1.07468304,696.41,695.35,2.8353474]
[1736708264970,1.07468304,696.41,695.36,2.99870771]
[1736708265171,1.07468304,696.41,695.37,2.8353474]
[1736708265569,1.07468304,696.42,695.37,2.8353474]
[1736708266264,1.07468304,696.42,695.38,2.99870771]
[1736708266470,1.07468304,696.42,695.39,2.8353474]
[1736708267472,1.07468304,696.41,695.39,2.8353474]
[1736708267771,1.07468304,696.41,695.4,2.99870771]
[1736708267972,1.07468304,696.41,695.41,2.8353474]
[1736708269273,1.07468304,696.41,695.42,2.99870771]
[1736708269476,1.07468304,696.41,695.43,2.8354954]
[1736708269675,1.07468304,696.41,695.43,1.74045895]
[1736708270770,1.07468304,696.42,695.43,1.74045895]
[1736708271074,1.07468304,696.42,695.3,0.28764562]
[1736708271775,0.28711293,696.59,695.31,1.28144192]
[1736708271776,1.07468304,696.46,695.31,1.28144192]
[1736708272378,1.07468304,696.46,695.31,4.11689208]
[1736708272577,1.07468304,696.46,695.32,2.83545016]
[1736708272778,1.07468304,696.46,695.33,2.83545016]
[1736708273479,1.07468304,696.47,695.33,2.83545016]
[1736708273673,1.07468304,696.47,695.34,2.99870771]
[1736708273872,1.07468304,696.47,695.35,2.83545016]
[1736708274379,1.07468304,696.48,695.35,2.83545016]
[1736708274878,1.07468304,696.48,695.36,2.99870771]
[1736708275081,1.07468304,696.48,695.37,2.83545016]
[1736708275379,1.07468304,696.47,695.37,2.83545016]
[1736708276380,1.07468304,696.48,695.38,2.99870771]
[1736708276675,1.07468304,696.48,695.39,2.83545016]
[1736708277682,1.07468304,696.48,695.4,2.99870771]
[1736708277876,1.07468304,696.48,695.41,1.74045895]
[1736708278280,0.28711293,696.59,695.41,1.74045895]
[1736708278281,1.07468304,696.39,695.41,1.74045895]
[1736708279582,1.07468304,696.39,695.3,0.28764562]
[1736708279977,1.07468304,696.4,695.3,0.28764562]
[1736708281283,1.07468304,696.38,695.3,0.28764562]
[1736708282282,1.07468304,696.39,695.3,0.28764562]
[1736708286291,1.07468304,696.4,695.3,0.28764562]
[1736708286989,1.07468304,696.4,695.3,3.28635333]
[1736708287183,1.07468304,696.4,695.31,2.83539055]
[1736708288291,1.07468304,696.4,695.32,2.99870771]
[1736708288592,1.07468304,696.4,695.33,2.83539055]
[1736708289091,1.07468304,696.4,695.33,1.74045895]
[1736708289392,1.07468304,696.4,695.32,2.99870771]
[1736708289593,1.07468304,696.4,695.3,0.28764562]
[1736708289994,1.50037725,696.58,695.3,0.28764562]
[1736708292694,0.28712117,696.57,695.3,0.28764562]
[1736708293290,0.26409449,696.56,695.3,0.28764562]
[1736708293494,0.28712942,696.55,695.3,0.28764562]
[1736708293791,0.26409449,696.54,695.3,0.28764562]
[1736708293995,0.28713766,696.53,695.3,0.28764562]
[1736708294191,1.07468304,696.41,695.3,0.28764562]
[1736708294496,0.26409449,696.4,695.3,0.28764562]
[1736708295495,0.26410604,696.39,695.3,0.28764562]
[1736708295694,0.26410604,696.38,695.3,0.28764562]
[1736708295893,0.28718714,696.41,695.3,0.28764562]
[1736708305801,0.26409533,696.4,695.3,0.28764562]
[1736708306501,0.26409884,696.39,695.3,0.28764562]
[1736708306703,0.26409884,696.38,695.3,0.28764562]
[1736708306904,0.26409884,696.37,695.3,0.28764562]
[1736708307103,0.26409884,696.36,695.3,0.28764562]
[1736708307304,0.26409884,696.35,695.3,0.28764562]
[1736708307505,0.26409884,696.34,695.3,0.28764562]
[1736708307706,0.26409884,696.33,695.3,0.28764562]
[1736708307903,0.26409884,696.32,695.3,0.28764562]
[1736708308101,0.26409884,696.39,695.3,0.28764562]
[1736708308307,0.26409038,696.38,695.3,0.28764562]
[1736708308506,0.26409038,696.37,695.3,0.28764562]
[1736708308702,0.26409038,696.36,695.3,0.28764562]
[1736708308903,0.26409038,696.35,695.3,0.28764562]
[1736708309209,0.26409038,696.34,695.3,0.28764562]
[1736708309404,0.26409871,696.33,695.3,0.28764562]
[1736708309708,0.26409871,696.32,695.3,0.28764562]
[1736708309909,1.07468304,696.39,695.3,0.28764562]
[1736708310108,0.26409299,696.38,695.3,0.28764562]
[1736708310305,0.26409299,696.37,695.3,0.28764562]
[1736708310510,0.26409299,696.36,695.3,0.28764562]
[1736708310810,0.26409299,696.35,695.3,0.28764562]
[1736708311010,0.26409299,696.34,695.3,0.28764562]
[1736708311308,1.36187018,696.41,695.3,0.28764562]
[1736708311508,0.26409626,696.4,695.3,0.28764562]
[1736708312009,1.07468304,696.39,695.3,0.28764562]
[1736708312206,0.26409626,696.38,695.3,0.28764562]
[1736708314111,1.3387793,696.38,695.3,0.28764562]
[1736708314307,0.26409626,696.37,695.3,0.28764562]
[1736708314709,1.07468304,696.38,695.3,0.28764562]
[1736708314911,0.26409543,696.37,695.3,0.28764562]
[1736708315112,1.33877847,696.37,695.3,0.28764562]
[1736708315309,0.26409543,696.36,695.3,0.28764562]
[1736708315512,1.07468304,696.37,695.3,0.28764562]
[1736708316217,1.07468304,696.35,695.3,0.28764562]
[1736708317117,1.36187018,696.41,695.3,0.28764562]
[1736708318116,1.07468304,696.4,695.3,0.28764562]
[1736708318317,0.28719539,696.39,695.3,0.28764562]
[1736708319017,1.36187843,696.39,695.3,0.28764562]
[1736708320217,1.07468304,696.38,695.3,0.28764562]
[1736708320614,0.28720364,696.37,695.3,0.28764562]
[1736708320814,1.07468304,696.36,695.3,0.28764562]
[1736708321816,1.36188668,696.37,695.3,0.28764562]
[1736708322918,1.07468304,696.33,695.3,0.28764562]
[1736708323922,1.07468304,696.29,695.3,0.28764562]
[1736708326627,1.07468304,696.19,695.3,0.28764562]
[1736708328229,1.07468304,696.18,695.3,0.28764562]
[1736708328925,1.07468304,696.19,695.3,0.28764562]
[1736708333933,1.07468304,696.2,695.3,0.28764562]
[1736708335438,1.07468304,696.18,695.3,0.28764562]
[1736708338638,1.36124981,696.37,695.3,0.28764562]
[1736708338639,1.07468304,696.2,695.3,0.28764562]
[1736708339635,1.07468304,696.19,695.3,0.28764562]
[1736708340240,1.07468304,696.2,695.3,0.28764562]
[1736708341341,1.07468304,696.22,695.3,0.28764562]
[1736708342436,1.07468304,696.21,695.3,0.28764562]
[1736708344637,1.07468304,696.21,694.96,2.83264466]
[1736708344844,1.07468304,696.21,694.96,1.73895641]
[1736708345043,1.07468304,696.2,694.96,2.83263816]
[1736708345246,1.07468304,696.2,694.97,1.73895641]
[1736708345444,1.07468304,696.2,694.88,2.832829]
[1736708345642,1.07468304,696.2,694.89,0.28781533]
[1736708346647,1.07468304,696.21,694.89,0.28781533]
[1736708347351,1.07468304,696.22,694.89,0.28781533]
[1736708347647,1.07468304,696.22,694.89,3.28780724]
[1736708347843,1.07468304,696.22,694.9,2.832829]
[1736708348043,0.28720364,696.37,694.9,2.832829]
[1736708348044,1.07468304,696.21,694.91,0.28780705]
[1736708349049,1.07468304,696.2,694.91,0.28780705]
[1736708349250,1.07468304,696.2,694.91,3.28779896]
[1736708349449,1.07468304,696.2,694.92,2.832829]
[1736708349642,1.07468304,696.2,694.93,0.28779877]
[1736708350850,0.28720364,696.37,694.93,0.28779877]
[1736708350851,1.07468304,696.16,694.93,3.28779068]
[1736708351150,1.07468304,696.16,694.94,2.832829]
[1736708351343,1.07468304,696.16,694.95,0.28779048]
[1736708352249,1.07468304,696.17,694.95,0.28779048]
[1736708352950,1.07468304,696.17,694.95,3.28778239]
[1736708353246,1.07468304,696.16,694.96,2.832829]
[1736708354449,1.07468304,696.16,694.97,2.99999191]
[1736708354749,1.07468304,696.16,694.98,2.832829]
[1736708355852,1.07468304,696.16,694.99,2.99999191]
[1736708356147,1.07468304,696.16,695.0,2.832829]
[1736708356649,1.07468304,696.17,695.0,2.832829]
[1736708357250,1.07468304,696.17,695.01,2.99999191]
[1736708357445,1.07468304,696.17,695.02,2.832829]
[1736708357646,1.07468304,696.14,695.02,2.832829]
[1736708358747,1.07468304,696.16,695.03,2.99999191]
[1736708358949,1.07468304,696.16,695.04,2.832829]
[1736708360252,1.07468304,696.16,695.05,2.99999191]
[1736708360447,1.07468304,696.16,695.06,2.832829]
[1736708361454,0.28720364,696.37,695.06,2.832829]
[1736708361455,1.07468304,696.15,695.06,2.832829]
[1736708362555,1.07468304,696.15,695.07,2.99999191]
[1736708362855,1.07404617,696.33,695.07,2.99999191]
[1736708362856,1.07468304,696.14,695.08,2.832829]
[1736708364457,1.07468304,696.14,695.09,2.99999191]
[1736708365256,1.07468304,696.14,695.1,1.74221127]
[1736708365554,0.88752609,696.36,695.1,1.74221127]
[1736708365555,1.07468304,696.16,695.1,1.74221127]
[1736708365952,1.07468304,696.16,694.95,0.28779048]
[1736708366754,1.07468304,696.17,694.95,0.28779048]
[1736708367352,1.07468304,696.17,694.95,3.12502539]
[1736708367554,1.07468304,696.16,694.95,3.12502539]
[1736708368357,1.07468304,696.16,694.96,2.99999191]
[1736708368562,1.07468304,696.22,694.97,2.83723491]
[1736708369863,1.07468304,696.22,694.98,2.99999191]
[1736708370062,1.07468304,696.22,694.99,2.83723491]
[1736708371366,1.07468304,696.22,695.0,2.99999191]
[1736708371567,1.07468304,696.22,695.01,2.83723491]
[1736708372770,1.07468304,696.22,695.02,2.99999191]
[1736708372965,1.07468304,696.22,695.03,1.74221127]
[1736708374366,1.07468304,696.23,695.03,2.83766662]
[1736708374965,1.07468304,696.23,695.04,2.99999191]
[1736708375168,1.07468304,696.22,695.05,1.74221127]
[1736708376169,1.07468304,696.16,695.05,1.74221127]
[1736708377272,1.07468304,696.16,694.95,0.28779048]
[1736708378267,1.07468304,696.12,694.98,1.28144192]
[1736708379171,1.07468304,696.11,694.98,1.28144192]
[1736708379568,1.07468304,696.11,694.98,7.11922961]
[1736708379769,1.07468304,696.11,694.99,2.83779578]
[1736708379970,1.07468304,696.11,694.99,4.1192377]
[1736708380169,1.07468304,696.11,695.0,2.83779578]
[1736708380766,1.07468304,696.14,695.01,2.99999191]
[1736708380968,1.07468304,696.14,695.02,2.83779578]
[1736708382773,1.07468304,696.14,695.03,2.99999191]
[1736708382968,1.07468304,696.14,695.04,2.83779578]
[1736708383376,1.07468304,696.14,695.05,2.99999191]
[1736708383567,1.07468304,696.14,695.06,2.83779578]
[1736708384175,1.07468304,696.12,695.06,2.83779578]
[1736708385176,1.07468304,696.19,695.07,2.99999191]
[1736708385475,1.07468304,696.19,695.08,2.83779578]
[1736708385877,1.07468304,696.18,695.08,2.83779578]
[1736708387176,1.07468304,696.18,695.09,2.99999191]
[1736708387477,1.07468304,696.18,695.1,2.83779578]
[1736708388880,1.07468304,696.18,695.11,2.99999191]
[1736708389182,1.07468304,696.18,695.12,2.83779578]
[1736708390179,1.07468304,696.18,695.13,2.99999191]
[1736708390376,1.07468304,696.18,695.14,2.83779578]
[1736708391983,1.07468304,696.13,695.15,2.99999191]
[1736708392182,1.07468304,696.13,695.16,2.83808921]
[1736708392482,1.07468304,696.13,695.16,1.74221127]
[1736708393777,1.07468304,696.13,695.02,2.99999191]
[1736708393778,1.07468304,696.12,695.03,2.83815874]
[1736708395180,1.07468304,696.12,695.04,2.99999191]
[1736708395381,1.07468304,696.12,695.05,2.83815874]
[1736708396682,1.07468304,696.12,695.06,2.99999191]
[1736708396882,1.07468304,696.12,695.07,2.83815874]
[1736708397280,0.88787357,696.36,695.07,2.83815874]
[1736708397281,1.07468304,696.14,695.07,2.83815874]
[1736708397583,1.07468304,696.14,695.08,2.99999191]
[1736708397783,1.07468304,696.14,695.09,2.83815874]
[1736708397982,1.07468304,696.13,695.09,2.83815874]
[1736708399284,1.07468304,696.13,695.1,2.99999191]
[1736708399480,1.07468304,696.18,695.11,2.83815874]
[1736708400485,1.07468304,696.18,695.12,2.99999191]
[1736708400679,1.07468304,696.18,695.13,2.83815874]
[1736708400883,1.07468304,696.17,695.13,2.83815874]
[1736708401080,1.07468304,696.17,695.13,1.74221127]
[1736708401281,1.07468304,696.17,695.13,2.83820578]
[1736708401987,1.07468304,696.14,695.13,1.74221127]
[1736708402183,1.07468304,696.14,695.13,2.83819863]
[1736708402387,1.07468304,696.14,695.14,2.83819863]
[1736708402586,1.07468304,696.15,695.15,2.83819863]
[1736708402782,1.07468304,696.15,695.16,2.83819863]
[1736708402982,1.07468304,696.15,695.17,1.74221127]
[1736708403190,1.07468304,696.15,695.03,2.83812645]
[1736708403989,1.07468304,696.15,695.04,2.99999191]
[1736708404190,1.07468304,696.15,695.05,2.83812645]
[1736708404989,1.07468304,696.16,695.06,2.99999191]
[1736708405192,1.07468304,696.16,695.07,2.83812645]
[1736708405992,0.28720364,696.37,695.07,2.83812645]
[1736708405993,1.07468304,696.14,695.07,2.83812645]
[1736708406585,1.07468304,696.14,695.08,2.99999191]
[1736708406892,1.07468304,696.14,695.09,2.83812645]
[1736708408695,1.07468304,696.14,695.1,2.99999191]
[1736708408900,1.07468304,696.14,695.11,2.83812645]
[1736708409999,1.07468304,696.15,695.11,2.83812645]
[1736708410194,1.07468304,696.15,695.12,2.99999191]
[1736708410399,1.07468304,696.15,695.13,2.83812645]
[1736708411294,1.07468304,696.17,695.13,2.83812645]
[1736708411693,1.07468304,696.17,695.14,2.99999191]
[1736708411895,1.07468304,696.17,695.15,2.83812645]
[1736708412294,1.07468304,696.16,695.15,2.83812645]
[1736708412900,1.07468304,696.14,695.15,2.83812645]
[1736708413099,1.07468304,696.14,695.16,2.99999191]
[1736708413298,1.07468304,696.14,695.17,1.74221127]
[1736708414200,1.07468304,696.17,695.17,1.74221127]
[1736708415096,1.07468304,696.17,695.01,2.8380694]
[1736708415900,1.07468304,696.17,695.01,1.74221127]
[1736708416294,1.07468304,696.17,695.01,4.74220318]
[1736708416499,1.07468304,696.17,695.02,1.74221127]
[1736708416703,1.07468304,696.26,695.02,1.74221127]
[1736708417700,1.07468304,696.27,695.01,2.99999191]
[1736708418102,1.07468304,696.27,694.95,0.28779048]
[1736708418295,0.28720364,696.37,694.95,0.28779048]
[1736708422899,0.28720364,696.37,695.08,1.28144192]
[1736708423904,0.28720364,696.37,695.07,1.28144192]
[1736708424903,0.28720364,696.37,695.07,4.12006921]
[1736708425110,0.28720364,696.37,695.08,3.12636395]
[1736708425608,0.28720364,696.37,695.09,2.99999191]
[1736708425807,0.28720364,696.37,695.1,2.83862729]
[1736708426205,0.28720364,696.37,695.11,0.28772424]
[1736708427209,0.28720364,696.37,695.11,3.28771615]
[1736708427405,0.28720364,696.37,695.12,2.83862729]
[1736708427609,0.28720364,696.37,695.13,0.28771596]
[1736708428911,0.28720364,696.37,695.13,3.28770787]
[1736708429113,0.28720364,696.37,695.14,2.83862729]
[1736708429612,0.28720364,696.37,695.15,0.28770768]
[1736708430311,0.28720364,696.37,695.15,3.28769959]
[1736708430508,0.28720364,696.37,695.16,2.83862729]
[1736708430714,0.28720364,696.37,695.17,0.28769941]
[1736708458238,0.28720364,696.37,695.17,4.40454103]
[1736708458434,0.28720364,696.37,695.18,5.8309129]
[1736708458636,0.28720364,696.37,695.19,2.83092099]
[1736708459438,0.28720364,696.37,695.23,1.28592063]
[1736708460336,0.28720364,696.37,695.23,4.11684162]
[1736708460535,0.28720364,696.37,695.24,2.83092099]